Workbook

Sheet Sheet1
A1: 横須賀市立中学校のユニフォーム(制服)に関する調査 | AC1: 教育指導課の2020年11月17日時点提供情報を基に横須賀市議会議員・小林伸行が加工作成
A2: ID | B2: 中学校名 | C2: ユニフォームの 初期投資額概算 | E2: 標準服系 概要 | K2: 標準服系 物品別単価 | T2: 標準服系 計 | V2: ジャージ系 概要 | Y2: ジャージ系 物品別単価 | AC2: ジャージ系計 | AD2: ユニフォームの 初期投資額合計
C3: いわゆる男子用 初期投資額概算 | D3: いわゆる女子用 初期投資額概算 | E3: いわゆる男子用 既製品／特注品 | F3: いわゆる女子用 既製品／特注品 | G3: 男子他校との異同 | H3: 女子他校との異同 | I3: 販売事業者数 | J3: 性差の有無※ | K3: 詰襟学生服 | L3: ズボン | M3: ネクタイ | N3: ブレザー | O3: ベスト | P3: スカート | Q3: リボン | R3: いわゆる男子用 制服セット | S3: いわゆる女子用 制服セット | T3: いわゆる男子用 1セット合計額 | U3: いわゆる女子用 1セット合計額 | V3: 既製品／特注品 | W3: 他校との異同 | X3: 販売事業者数 | Y3: ジャージ上 | Z3: ジャージ下 | AA3: 体操服（Tシャツ） | AB3: ハーフパンツ | AC3: ジャージ系 2セット合計額 | AD3: 男子初期投資額 | AE3: 女子初期投資額 | AF3: 男女の価格差
A4: 1 | B4: 追浜 | C4: 61486 | D4: 66086 | E4: 既製 | F4: 特注 | G4: 同 | H4: 異 | I4: 8 | J4: 有 | K4: 23900 | L4: 12,000* | N4: 19000 | O4: 7200 | P4: 12500 | Q4: 300 | T4: 35900 | U4: 40500 | V4: 特注 | W4: 無 | X4: 1 | Y4: 4400 | Z4: 3773 | AA4: 2156 | AB4: 2464 | AC4: 25586 | AD4: =T4+AC4 -> 61486 | AE4: =U4+AC4 -> 66086 | AF4: =AE4-AD4 -> 4600
A5: 2 | B5: 鷹取 | C5: 59667 | D5: 60038 | E5: 特注 | F5: 特注 | G5: 異 | H5: 異 | I5: 複数 | J5: 有 | M5: 1195 | R5: 29167 | S5: 29538 | T5: 29167 | U5: 29538 | V5: 特注 | W5: 無 | X5: 1 | Y5: 5400 | Z5: 4300 | AA5: 2600 | AB5: 2950 | AC5: 30500 | AD5: =T5+AC5 -> 59667 | AE5: =U5+AC5 -> 60038 | AF5: =AE5-AD5 -> 371
A6: 3 | B6: 田浦 | C6: 59800 | D6: 59900 | E6: 既製 | F6: 既製 | G6: 異 | H6: 異 | I6: 5 | J6: 有 | M6: 1700 | O6: 4000 | Q6: 1000 | R6: 30500 | S6: 30600 | T6: 30500 | U6: 30600 | V6: 既製 | W6: 無 | X6: 1 | Y6: 5200 | Z6: 4000 | AA6: 2550 | AB6: 2900 | AC6: 29300 | AD6: 59800 | AE6: 59900 | AF6: 100
A7: 4 | B7: 坂本 | C7: 55600 | D7: 65940 | E7: 既製 | F7: 特注 | G7: 同 | H7: 異 | I7: 6 | J7: 有 | R7: 30800 | S7: 41140 | T7: 30800 | U7: 41140 | V7: 特注 | W7: 無 | X7: 1 | Y7: 3800 | Z7: 3300 | AA7: 2300 | AB7: 3000 | AC7: 24800 | AD7: 55600 | AE7: 65940 | AF7: 10340
A8: 5 | B8: 不入斗 | C8: 69934 | D8: 69339 | E8: 既製 | F8: 既製 | G8: 異 | H8: 異 | I8: 5 | J8: 有 | O8: 6010 | P8: 13815 | R8: 37934 | S8: 37339 | T8: 37934 | U8: 37339 | V8: 既製 | W8: 無 | X8: 1 | Y8: 5600 | Z8: 4500 | AA8: 2550 | AB8: 3350 | AC8: 32000 | AD8: 69934 | AE8: 69339 | AF8: -595
A9: 6 | B9: 常葉 | C9: 54302 | D9: 51302 | E9: 既製 | F9: 既製 | G9: 同 | H9: 異 | I9: 複数 | J9: 有 | K9: 21300 | L9: 8900 | N9: 11000 | O9: 5000 | P9: 10900 | Q9: 300 | T9: 30200 | U9: 27200 | V9: 既製 | W9: 無 | X9: 1 | Y9: 4191 | Z9: 3563 | AA9: 1991 | AB9: 2306 | AC9: 24102 | AD9: 54302 | AE9: 51302 | AF9: -3000
A10: 7 | B10: 公郷 | C10: 66867 | D10: 71703 | E10: 既製 | F10: 既製 | G10: 異 | H10: 同 | I10: 複数 | J10: 無* | K10: 26349 | L10: 13618 | N10: 21434 | O10: 8203 | P10: 15166 | T10: 39967 | U10: 44803 | V10: 既製 | W10: 無 | X10: 1 | Y10: 4200 | Z10: 4300 | AA10: 2300 | AB10: 2650 | AC10: 26900 | AD10: 66867 | AE10: 71703 | AF10: 4836
A11: 8 | B11: 池上 | C11: 57537 | D11: 59082 | E11: 特注 | F11: 特注 | G11: 異 | H11: 異 | I11: 4 | J11: 無* | M11: 1404 | R11: 33879 | S11: 35424 | T11: 33879 | U11: 35424 | V11: 既製 | W11: 無 | X11: 1 | Y11: 3909 | Z11: 3703 | AA11: 2057 | AB11: 2160 | AC11: 23658 | AD11: 57537 | AE11: 59082 | AF11: 1545
A12: 9 | B12: 衣笠 | C12: 65164 | D12: 56804 | E12: 既製 | F12: 既製 | G12: 同 | H12: 同 | I12: 複数 | J12: 有 | R12: 37950 | S12: 29590 | T12: 37950 | U12: 29590 | V12: 既製 | W12: 無 | X12: 1 | Y12: 4609 | Z12: 4609 | AA12: 2079 | AB12: 2310 | AC12: 27214 | AD12: 65164 | AE12: 56804 | AF12: -8360
A13: 10 | B13: 大矢部 | C13: 67156 | D13: 71152 | E13: 既製 | F13: 既製 | G13: 異 | H13: 異 | I13: 複数 | J13: 有 | R13: 40932 | S13: 44928 | T13: 40932 | U13: 44928 | V13: 既製 | W13: 無 | X13: 1 | Y13: 4378 | Z13: 3905 | AA13: 2156 | AB13: 2673 | AC13: 26224 | AD13: 67156 | AE13: 71152 | AF13: 3996
A14: 11 | B14: 大津 | C14: 65650 | D14: 67150 | E14: 既製 | F14: 既製 | G14: 異 | H14: 異 | I14: 6 | J14: 有 | L14: 11100 | N14: 20000 | O14: 4950 | P14: 12600 | T14: 36050 | U14: 37550 | V14: 既製 | W14: 無 | X14: 1 | Y14: 5500 | Z14: 4100 | AA14: 2000 | AB14: 3200 | AC14: 29600 | AD14: 65650 | AE14: 67150 | AF14: 1500
A15: 12 | B15: 馬堀 | C15: 56470 | D15: 56910 | E15: 既製 | F15: 既製 | G15: 異 | H15: 異 | I15: 4 | J15: 無 | M15: 1870 | O15: 4730 | Q15: 1320 | R15: 32670 | S15: 33110 | T15: 32670 | U15: 33110 | V15: 既製 | W15: 無 | X15: 1 | Y15: 3800 | Z15: 3300 | AA15: 2000 | AB15: 2800 | AC15: 23800 | AD15: 56470 | AE15: 56910 | AF15: 440
A16: 13 | B16: 浦賀 | C16: 56700 | D16: 56700 | E16: 特注 | F16: 特注 | G16: 異 | H16: 異 | I16: 5 | J16: 有 | O16: 2480 | R16: 27900 | S16: 27900 | T16: 27900 | U16: 27900 | V16: 特注 | W16: 無 | X16: 1 | Y16: 4850 | Z16: 3900 | AA16: 2650 | AB16: 3000 | AC16: 28800 | AD16: 56700 | AE16: 56700 | AF16: 0
A17: 14 | B17: 鴨居 | C17: 57328 | D17: 55428 | E17: 既製 | F17: 既製 | G17: 同 | H17: 同 | I17: 複数 | J17: 有 | R17: 31000 | S17: 29100 | T17: 31000 | U17: 29100 | V17: 特注 | W17: 無 | X17: 1 | Y17: 4525 | Z17: 3812 | AA17: 2311 | AB17: 2516 | AC17: 26328 | AD17: 57328 | AE17: 55428 | AF17: -1900
A18: 15 | B18: 岩戸 | C18: 66480 | D18: 73700 | E18: 既製 | F18: 既製 | G18: 異 | H18: 異 | I18: 5 | J18: 無 | R18: 35980 | S18: 43200 | T18: 35980 | U18: 43200 | V18: 既製 | W18: 無 | X18: 1 | Y18: 5400 | Z18: 4300 | AA18: 2400 | AB18: 3150 | AC18: 30500 | AD18: 66480 | AE18: 73700 | AF18: 7220
A19: 16 | B19: 久里浜 | C19: 65440 | D19: 69420 | E19: 既製 | F19: 特注 | G19: 同 | H19: 同 | I19: 複数 | J19: 無* | R19: 36640 | S19: 40620 | T19: 36640 | U19: 40620 | V19: 特注 | W19: 無 | X19: 1 | Y19: 5200 | Z19: 3900 | AA19: 2200 | AB19: 3100 | AC19: 28800 | AD19: 65440 | AE19: 69420 | AF19: 3980
A20: 17 | B20: 神明 | C20: 57800 | D20: 61100 | E20: 特注 | F20: 特注 | G20: 異 | H20: 異 | I20: 6 | J20: 無 | R20: 28900 | S20: 32200 | T20: 28900 | U20: 32200 | V20: 特注 | W20: 無 | X20: 1 | Y20: 5200 | Z20: 4300 | AA20: 1750 | AB20: 3200 | AC20: 28900 | AD20: 57800 | AE20: 61100 | AF20: 3300
A21: 18 | B21: 野比 | C21: 60500 | D21: 59290 | E21: 既製 | F21: 既製 | G21: 同 | H21: 同 | I21: 6 | J21: 有 | R21: 30800 | S21: 29590 | T21: 30800 | U21: 29590 | V21: 特注 | W21: 無 | X21: 1 | Y21: 5200 | Z21: 4300 | AA21: 2150 | AB21: 3200 | AC21: 29700 | AD21: 60500 | AE21: 59290 | AF21: -1210
A22: 19 | B22: 北下浦 | C22: 56200 | D22: 54990 | E22: 既製 | F22: 既製 | G22: 同 | H22: 同 | I22: 6 | J22: 無* | R22: 30800 | S22: 29590 | T22: 30800 | U22: 29590 | V22: 特注 | W22: 無 | X22: 1 | Y22: 3900 | Z22: 3900 | AA22: 2100 | AB22: 2800 | AC22: 25400 | AD22: 56200 | AE22: 54990 | AF22: -1210
A23: 20 | B23: 長沢 | C23: 58836 | D23: 59200 | E23: 特注 | F23: 特注 | G23: 異 | H23: 異 | I23: 複数 | J23: 無 | R23: 29636 | S23: 30000 | T23: 29636 | U23: 30000 | V23: 特注 | W23: 無 | X23: 1 | Y23: 4750 | Z23: 4150 | AA23: 2400 | AB23: 3300 | AC23: 29200 | AD23: 58836 | AE23: 59200 | AF23: 364
A24: 21 | B24: 長井 | C24: 58200 | D24: 57019 | E24: 既製 | F24: 既製 | G24: 同 | H24: 同 | I24: 6 | J24: 有 | R24: 28000 | S24: 26819 | T24: 28000 | U24: 26819 | V24: 特注 | W24: 無 | X24: 1 | Y24: 4950 | Z24: 4600 | AA24: 2550 | AB24: 3000 | AC24: 30200 | AD24: 58200 | AE24: 57019 | AF24: -1181
A25: 22 | B25: 武山 | C25: 63740 | D25: 64180 | E25: 既製 | F25: 既製 | G25: 異 | H25: 異 | I25: 5 | J25: 無 | L25: 11660 | N25: 20680 | O25: 5400 | P25: 12100 | T25: 37740 | U25: 38180 | V25: 既製 | W25: 無 | X25: 1 | Y25: 4700 | Z25: 3600 | AA25: 1900 | AB25: 2800 | AC25: 26000 | AD25: 63740 | AE25: 64180 | AF25: 440
A26: 23 | B26: 大楠 | C26: 59200 | D26: 54300 | E26: 既製 | F26: 既製 | G26: 同 | H26: 異 | I26: 5 | J26: 無 | R26: 31800 | S26: 26900 | T26: 31800 | U26: 26900 | V26: 既製 | W26: 無 | X26: 1 | Y26: 4900 | Z26: 3800 | AA26: 2400 | AB26: 2600 | AC26: 27400 | AD26: 59200 | AE26: 54300 | AF26: -4900
B27: 平均額 | C27: =AVERAGE(C4:C26) -> 60872.04348 | D27: =AVERAGE(D4:D26) -> 61771 | K27: =AVERAGE(K4:K26) -> 23849.66667 | L27: 11319.5 | M27: 1542.25 | N27: 18422.8 | O27: 5330.333333 | P27: 12846.83333 | Q27: 730 | R27: 32516 | S27: 33199.33333 | T27: 33267.17391 | U27: 34166.13043 | Y27: =AVERAGE(Y4:Y26) -> 4720.086957 | Z27: 3996.304348 | AA27: 2241.304348 | AB27: 2844.73913 | AC27: 27604.86957
L28: ↑*追浜中のみズボンが女子用は価格が異なり、14,000円となる。女子用の1セット合計額は女子用ズボンで計算
J29: ↑※この列のみ小林調べ。「無*」は標準服に男子用/女子用の別はないが、女子にのみベスト着用を求めている学校
C30: ↑最高額と最低額の価格差
C31: ±15,632 | D31: ±22,398

Sheet Sheet4
B2: 横須賀市立中学校の制服 初期投資額概算
B3: ID | C3: 中学校名 | D3: いわゆる男子用 | E3: いわゆる女子用
B4: 1 | C4: 追浜 | D4: 61486 | E4: 66086
B5: 2 | C5: 鷹取 | D5: 59667 | E5: 60038
B6: 3 | C6: 田浦 | D6: 59800 | E6: 59900
B7: 4 | C7: 坂本 | D7: 55600 | E7: 65940
B8: 5 | C8: 不入斗 | D8: 69934 | E8: 69339
B9: 6 | C9: 常葉 | D9: 54302 | E9: 51302
B10: 7 | C10: 公郷 | D10: 66867 | E10: 71703
B11: 8 | C11: 池上 | D11: 57537 | E11: 59082
B12: 9 | C12: 衣笠 | D12: 65164 | E12: 56804
B13: 10 | C13: 大矢部 | D13: 67156 | E13: 71152
B14: 11 | C14: 大津 | D14: 65650 | E14: 67150
B15: 12 | C15: 馬堀 | D15: 56470 | E15: 56910
B16: 13 | C16: 浦賀 | D16: 56700 | E16: 56700
B17: 14 | C17: 鴨居 | D17: 57328 | E17: 55428
B18: 15 | C18: 岩戸 | D18: 66480 | E18: 73700
B19: 16 | C19: 久里浜 | D19: 65440 | E19: 69420
B20: 17 | C20: 神明 | D20: 57800 | E20: 61100
B21: 18 | C21: 野比 | D21: 60500 | E21: 59290
B22: 19 | C22: 北下浦 | D22: 56200 | E22: 54990
B23: 20 | C23: 長沢 | D23: 58836 | E23: 59200
B24: 21 | C24: 長井 | D24: 58200 | E24: 57019
B25: 22 | C25: 武山 | D25: 63740 | E25: 64180
B26: 23 | C26: 大楠 | D26: 59200 | E26: 54300
C27: 平均額 | D27: =AVERAGE(D4:D26) -> 60872.04348 | E27: =AVERAGE(E4:E26) -> 61771
D28: 最高額と最低額の価格差
D29: ±15,632 | E29: ±22,398

Sheet Sheet2
A1: 中学校名 | B1: 男子初期投資額 | C1: 女子初期投資額 | D1: 既製品／特注品 （男子用） | E1: 既製品／特注品 （女子用） | F1: 他校との異同 | G1: 販売事業者数 | H1: 詰襟学生服 | I1: ズボン | J1: ネクタイ | K1: ブレザー | L1: ベスト | M1: スカート | N1: リボン | O1: 制服セット （男子用） | P1: 制服セット （女子用） | Q1: 男子標準服 1セット合計額 | R1: 女子標準服 1セット合計額 | S1: 既製品／特注品 | T1: 他校との異同 | U1: 販売事業者数 | V1: ジャージ上 | W1: ジャージ下 | X1: 体操服（Tシャツ） | Y1: ハーフパンツ | Z1: ジャージ 2セット合計額
A2: 常葉 | B2: 54302 | C2: 51302 | D2: 既製 | E2: 既製 | F2: 有 | G2: 複数 | H2: 21300 | I2: 8900 | K2: 11000 | L2: 5000 | M2: 10900 | N2: 300 | Q2: 30200 | R2: 27200 | S2: 既製 | T2: 無 | U2: 1 | V2: 4191 | W2: 3563 | X2: 1991 | Y2: 2306 | Z2: 24102
A3: 衣笠 | B3: 65164 | C3: 56804 | D3: 既製 | E3: 既製 | F3: 有 | G3: 複数 | O3: 37950 | P3: 29590 | Q3: 37950 | R3: 29590 | S3: 既製 | T3: 無 | U3: 1 | V3: 4609 | W3: 4609 | X3: 2079 | Y3: 2310 | Z3: 27214
A4: 大楠 | B4: 59200 | C4: 54300 | D4: 既製 | E4: 既製 | F4: 有 | G4: 5 | O4: 31800 | P4: 26900 | Q4: 31800 | R4: 26900 | S4: 既製 | T4: 無 | U4: 1 | V4: 4900 | W4: 3800 | X4: 2400 | Y4: 2600 | Z4: 27400
A5: 鴨居 | B5: 57328 | C5: 55428 | D5: 既製 | E5: 既製 | F5: 有 | G5: 複数 | O5: 31000 | P5: 29100 | Q5: 31000 | R5: 29100 | S5: 特注 | T5: 無 | U5: 1 | V5: 4525 | W5: 3812 | X5: 2311 | Y5: 2516 | Z5: 26328
A6: 野比 | B6: 60500 | C6: 59290 | D6: 既製 | E6: 既製 | F6: 有 | G6: 6 | O6: 30800 | P6: 29590 | Q6: 30800 | R6: 29590 | S6: 特注 | T6: 無 | U6: 1 | V6: 5200 | W6: 4300 | X6: 2150 | Y6: 3200 | Z6: 29700
A7: 北下浦 | B7: 56200 | C7: 54990 | D7: 既製 | E7: 既製 | F7: 有 | G7: 6 | O7: 30800 | P7: 29590 | Q7: 30800 | R7: 29590 | S7: 特注 | T7: 無 | U7: 1 | V7: 3900 | W7: 3900 | X7: 2100 | Y7: 2800 | Z7: 25400
A8: 長井 | B8: 58200 | C8: 57019 | D8: 既製 | E8: 既製 | F8: 有 | G8: 6 | O8: 28000 | P8: 26819 | Q8: 28000 | R8: 26819 | S8: 特注 | T8: 無 | U8: 1 | V8: 4950 | W8: 4600 | X8: 2550 | Y8: 3000 | Z8: 30200
A9: 追浜 | B9: 61486 | C9: 66086 | D9: 既製 | E9: 特注 | F9: 有 | G9: 8 | H9: 23900 | I9: 12,000* | K9: 19000 | L9: 7200 | M9: 12500 | N9: 300 | Q9: 35900 | R9: 40500 | S9: 特注 | T9: 無 | U9: 1 | V9: 4400 | W9: 3773 | X9: 2156 | Y9: 2464 | Z9: 25586
A10: 坂本 | B10: 55600 | C10: 65940 | D10: 既製 | E10: 特注 | F10: 有 | G10: 6 | O10: 30800 | P10: 41140 | Q10: 30800 | R10: 41140 | S10: 特注 | T10: 無 | U10: 1 | V10: 3800 | W10: 3300 | X10: 2300 | Y10: 3000 | Z10: 24800
A11: 久里浜 | B11: 65440 | C11: 69420 | D11: 既製 | E11: 特注 | F11: 有 | G11: 複数 | O11: 36640 | P11: 40620 | Q11: 36640 | R11: 40620 | S11: 特注 | T11: 無 | U11: 1 | V11: 5200 | W11: 3900 | X11: 2200 | Y11: 3100 | Z11: 28800
A12: 田浦 | B12: 59800 | C12: 59900 | D12: 既製 | E12: 既製 | F12: 無 | G12: 5 | J12: 1700 | L12: 4000 | N12: 1000 | O12: 30500 | P12: 30600 | Q12: 30500 | R12: 30600 | S12: 既製 | T12: 無 | U12: 1 | V12: 5200 | W12: 4000 | X12: 2550 | Y12: 2900 | Z12: 29300
A13: 不入斗 | B13: 69934 | C13: 69339 | D13: 既製 | E13: 既製 | F13: 無 | G13: 5 | L13: 6010 | M13: 13815 | O13: 37934 | P13: 37339 | Q13: 37934 | R13: 37339 | S13: 既製 | T13: 無 | U13: 1 | V13: 5600 | W13: 4500 | X13: 2550 | Y13: 3350 | Z13: 32000
A14: 公郷 | B14: 66867 | C14: 71703 | D14: 既製 | E14: 既製 | F14: 無 | G14: 複数 | H14: 26349 | I14: 13618 | K14: 21434 | L14: 8203 | M14: 15166 | Q14: 39967 | R14: 44803 | S14: 既製 | T14: 無 | U14: 1 | V14: 4200 | W14: 4300 | X14: 2300 | Y14: 2650 | Z14: 26900
A15: 大矢部 | B15: 67156 | C15: 71152 | D15: 既製 | E15: 既製 | F15: 無 | G15: 複数 | O15: 40932 | P15: 44928 | Q15: 40932 | R15: 44928 | S15: 既製 | T15: 無 | U15: 1 | V15: 4378 | W15: 3905 | X15: 2156 | Y15: 2673 | Z15: 26224
A16: 大津 | B16: 60700 | C16: 67150 | D16: 既製 | E16: 既製 | F16: 無 | G16: 6 | I16: 11100 | K16: 20000 | L16: 4950 | M16: 12600 | Q16: 31100 | R16: 37550 | S16: 既製 | T16: 無 | U16: 1 | V16: 5500 | W16: 4100 | X16: 2000 | Y16: 3200 | Z16: 29600
A17: 馬堀 | B17: 56470 | C17: 56910 | D17: 既製 | E17: 既製 | F17: 無 | G17: 4 | J17: 1870 | L17: 4730 | N17: 1320 | O17: 32670 | P17: 33110 | Q17: 32670 | R17: 33110 | S17: 既製 | T17: 無 | U17: 1 | V17: 3800 | W17: 3300 | X17: 2000 | Y17: 2800 | Z17: 23800
A18: 岩戸 | B18: 66480 | C18: 73700 | D18: 既製 | E18: 既製 | F18: 無 | G18: 5 | O18: 35980 | P18: 43200 | Q18: 35980 | R18: 43200 | S18: 既製 | T18: 無 | U18: 1 | V18: 5400 | W18: 4300 | X18: 2400 | Y18: 3150 | Z18: 30500
A19: 武山 | B19: 58340 | C19: 64180 | D19: 既製 | E19: 既製 | F19: 無 | G19: 5 | I19: 11660 | K19: 20680 | L19: 5400 | M19: 12100 | Q19: 32340 | R19: 38180 | S19: 既製 | T19: 無 | U19: 1 | V19: 4700 | W19: 3600 | X19: 1900 | Y19: 2800 | Z19: 26000
A20: 池上 | B20: 57537 | C20: 59082 | D20: 特注 | E20: 特注 | F20: 無 | G20: 4 | J20: 1404 | O20: 33879 | P20: 35424 | Q20: 33879 | R20: 35424 | S20: 既製 | T20: 無 | U20: 1 | V20: 3909 | W20: 3703 | X20: 2057 | Y20: 2160 | Z20: 23658
A21: 鷹取 | B21: 59667 | C21: 60038 | D21: 特注 | E21: 特注 | F21: 無 | G21: 複数 | J21: 1195 | O21: 29167 | P21: 29538 | Q21: 29167 | R21: 29538 | S21: 特注 | T21: 無 | U21: 1 | V21: 5400 | W21: 4300 | X21: 2600 | Y21: 2950 | Z21: 30500
A22: 浦賀 | B22: 56700 | C22: 56700 | D22: 特注 | E22: 特注 | F22: 無 | G22: 5 | L22: 2480 | O22: 27900 | P22: 27900 | Q22: 27900 | R22: 27900 | S22: 特注 | T22: 無 | U22: 1 | V22: 4850 | W22: 3900 | X22: 2650 | Y22: 3000 | Z22: 28800
A23: 神明 | B23: 57800 | C23: 61100 | D23: 特注 | E23: 特注 | F23: 無 | G23: 6 | O23: 28900 | P23: 32200 | Q23: 28900 | R23: 32200 | S23: 特注 | T23: 無 | U23: 1 | V23: 5200 | W23: 4300 | X23: 1750 | Y23: 3200 | Z23: 28900
A24: 長沢 | B24: 58836 | C24: 59200 | D24: 特注 | E24: 特注 | F24: 無 | G24: 複数 | O24: 29636 | P24: 30000 | Q24: 29636 | R24: 30000 | S24: 特注 | T24: 無 | U24: 1 | V24: 4750 | W24: 4150 | X24: 2400 | Y24: 3300 | Z24: 29200

Sheet Sheet3
B1: 既製品／特注品 （男子用） | C1: 男子標準服 1セット合計額 | E1: 既製品／特注品 （女子用） | F1: 女子標準服 1セット合計額 | H1: 既製品／特注品 | I1: ジャージ 2セット合計額 | N1: 他校との異同 | O1: 男子標準服 1セット合計額 | P1: 女子標準服 1セット合計額 | R1: 中学校名 | S1: いわゆる男子用 1セット合計額 | U1: 中学校名 | V1: いわゆる女子用 1セット合計額
B2: 既製 | C2: 35900 | E2: 既製 | F2: 30600 | H2: 既製 | I2: 29300 | K2: 追浜中 | L2: あり | N2: 有 | O2: 30200 | P2: 27200 | R2: 追浜 | S2: 35900 | U2: 追浜 | V2: 40500
B3: 既製 | C3: 30500 | E3: 既製 | F3: 37339 | H3: 既製 | I3: 32000 | K3: 鷹取中 | L3: あり | N3: 有 | O3: 37950 | P3: 29590 | R3: 坂本 | S3: 30800 | U3: 鷹取 | V3: 29538
B4: 既製 | C4: 30800 | E4: 既製 | F4: 27200 | H4: 既製 | I4: 24102 | K4: 田浦中 | L4: あり | N4: 有 | O4: 31800 | P4: 26900 | R4: 常葉 | S4: 30200 | U4: 田浦 | V4: 30600
B5: 既製 | C5: 37934 | E5: 既製 | F5: 44803 | H5: 既製 | I5: 26900 | K5: 坂本中 | L5: あり | N5: 有 | O5: 31000 | P5: 29100 | R5: 衣笠 | S5: 37950 | U5: 坂本 | V5: 41140
B6: 既製 | C6: 30200 | E6: 既製 | F6: 29590 | H6: 既製 | I6: 27214 | K6: 不入斗中 | L6: あり | N6: 有 | O6: 30800 | P6: 29590 | R6: 鴨居 | S6: 31000 | U6: 不入斗 | V6: 37339
B7: 既製 | C7: 39967 | E7: 既製 | F7: 44928 | H7: 既製 | I7: 26224 | K7: 常葉中 | L7: あり | N7: 有 | O7: 30800 | P7: 29590 | R7: 久里浜 | S7: 36640 | U7: 常葉 | V7: 27200
B8: 既製 | C8: 37950 | E8: 既製 | F8: 37550 | H8: 既製 | I8: 29600 | K8: 公郷中 | L8: なし（ベストのみ） | N8: 有 | O8: 28000 | P8: 26819 | R8: 野比 | S8: 30800 | U8: 池上 | V8: 35424
B9: 既製 | C9: 40932 | E9: 既製 | F9: 33110 | H9: 既製 | I9: 23800 | K9: 池上中 | L9: なし（ベストのみ） | N9: 有 | O9: 35900 | P9: 40500 | R9: 北下浦 | S9: 30800 | U9: 大矢部 | V9: 44928
B10: 既製 | C10: 31100 | E10: 既製 | F10: 29100 | H10: 既製 | I10: 30500 | K10: 衣笠中 | L10: あり | N10: 有 | O10: 30800 | P10: 41140 | R10: 長井 | S10: 28000 | U10: 大津 | V10: 37550
B11: 既製 | C11: 32670 | E11: 既製 | F11: 43200 | H11: 既製 | I11: 26000 | K11: 大矢部中 | L11: あり | N11: 有 | O11: 36640 | P11: 40620 | R11: 大楠 | S11: 31800 | U11: 馬堀 | V11: 33110
B12: 既製 | C12: 31000 | E12: 既製 | F12: 29590 | H12: 既製 | I12: 27400 | K12: 大津中 | L12: あり | O12: =AVERAGE(O2:O11) -> 32389 | P12: =AVERAGE(P2:P11) -> 32104.9 | S12: =AVERAGE(S2:S11) -> 32389 | U12: 浦賀 | V12: 27900
B13: 既製 | C13: 35980 | E13: 既製 | F13: 29590 | H13: 既製 | I13: 23658 | K13: 馬堀中 | L13: なし | R13: 鷹取 | S13: 29167 | U13: 岩戸 | V13: 43200
B14: 既製 | C14: 36640 | E14: 既製 | F14: 26819 | I14: =AVERAGE(I2:I13) -> 27224.83333 | J14: =I14/2 -> 13612.41667 | K14: 浦賀中 | L14: あり | N14: 無 | O14: 30500 | P14: 30600 | R14: 田浦 | S14: 30500 | U14: 神明 | V14: 32200
B15: 既製 | C15: 30800 | E15: 既製 | F15: 38180 | K15: 鴨居中 | L15: あり | N15: 無 | O15: 37934 | P15: 37339 | R15: 不入斗 | S15: 37934 | U15: 長沢 | V15: 30000
B16: 既製 | C16: 30800 | E16: 既製 | F16: 26900 | H16: 特注 | I16: 26328 | K16: 岩戸中 | L16: なし | N16: 無 | O16: 39967 | P16: 44803 | R16: 公郷 | S16: 39967 | U16: 武山 | V16: 38180
B17: 既製 | C17: 28000 | F17: =AVERAGE(F2:F16) -> 33899.93333 | H17: 特注 | I17: 29700 | K17: 久里浜中 | L17: なし(ベストのみ) | N17: 無 | O17: 40932 | P17: 44928 | R17: 池上 | S17: 33879 | U17: 大楠 | V17: 26900
B18: 既製 | C18: 32340 | H18: 特注 | I18: 25400 | K18: 神明中 | L18: なし | N18: 無 | O18: 31100 | P18: 37550 | R18: 大矢部 | S18: 40932 | V18: =AVERAGE(V2:V17) -> 34731.8125
B19: 既製 | C19: 31800 | E19: 特注 | F19: 40500 | H19: 特注 | I19: 30200 | K19: 野比中 | L19: あり | N19: 無 | O19: 32670 | P19: 33110 | R19: 大津 | S19: 36050 | U19: 公郷 | V19: 44803
C20: =AVERAGE(C2:C19) -> 33628.5 | E20: 特注 | F20: 41140 | H20: 特注 | I20: 25586 | K20: 北下浦中 | L20: なし(ベストのみ) | N20: 無 | O20: 35980 | P20: 43200 | R20: 馬堀 | S20: 32670 | U20: 衣笠 | V20: 29590
E21: 特注 | F21: 40620 | H21: 特注 | I21: 24800 | K21: 長沢中 | L21: なし | N21: 無 | O21: 32340 | P21: 38180 | R21: 浦賀 | S21: 27900 | U21: 鴨居 | V21: 29100
B22: 特注 | C22: 29167 | E22: 特注 | F22: 29538 | H22: 特注 | I22: 28800 | K22: 長井中 | L22: あり | N22: 無 | O22: 33879 | P22: 35424 | R22: 岩戸 | S22: 35980 | U22: 久里浜 | V22: 40620
B23: 特注 | C23: 33879 | E23: 特注 | F23: 35424 | H23: 特注 | I23: 30500 | K23: 武山中 | L23: なし | N23: 無 | O23: 29167 | P23: 29538 | R23: 神明 | S23: 28900 | U23: 野比 | V23: 29590
B24: 特注 | C24: 27900 | E24: 特注 | F24: 27900 | H24: 特注 | I24: 28800 | K24: 大楠中 | L24: なし | N24: 無 | O24: 27900 | P24: 27900 | R24: 長沢 | S24: 29636 | U24: 北下浦 | V24: 29590
B25: 特注 | C25: 28900 | E25: 特注 | F25: 32200 | H25: 特注 | I25: 28900 | N25: 無 | O25: 28900 | P25: 32200 | R25: 武山 | S25: 37740 | U25: 長井 | V25: 26819
B26: 特注 | C26: 29636 | E26: 特注 | F26: 30000 | H26: 特注 | I26: 29200 | N26: 無 | O26: 29636 | P26: 30000 | S26: =AVERAGE(S13:S25) -> 33942.69231 | V26: =AVERAGE(V19:V25) -> 32873.14286
C27: =AVERAGE(C22:C26) -> 29896.4 | F27: =AVERAGE(F19:F26) -> 34665.25 | I27: =AVERAGE(I16:I26) -> 28019.45455 | J27: =I27/2 -> 14009.72727 | O27: =AVERAGE(O14:O26) -> 33146.53846 | P27: =AVERAGE(P14:P26) -> 35751.69231 | R27: ↑いわゆる男子用の標準服が同じ学校：追浜、坂本、常葉、衣笠、鴨居、久里浜、野比、北下浦、長井、大楠
R28: ↑いわゆる女子用の標準服が同じ学校：公郷、衣笠、鴨居、久里浜、野比、北下浦、長井
